[Event "DVM U12w 2023"]
[Site "Magdeburg"]
[Date "2023.12.27"]
[Round "1"]
[White "Prasannavenkatesan, Ananya"]
[Black "Schirmbeck, Lilian"]
[Result "0-1"]
[WhiteElo "1045"]
[BlackElo "1585"]
[PlyCount "98"]
[EventDate "2022.12.27"]
[EventType "team-tourn"]
[EventRounds "7"]
[EventCountry "GER"]
[TimeControl "40/5400+30:1800+30"]
[WhiteClock "1:08:46"]
[BlackClock "0:27:20"]

1. e4 {[%emt 0:00:01]} c6 {[%emt 0:00:04]} 2. d4 {[%emt 0:00:05]} d5 {[%emt 0:00:04]} 3. exd5 {[%emt 0:00:16]} cxd5 {[%emt 0:00:06]} 4. Nf3 {[%emt 0:00:07]} Nc6 {[%emt 0:00:10]} 5. Bb5 {[%emt 0:00:07]} Nf6 {[%emt 0:04:53]} 6. Nc3 {[%emt 0:00:59]} Bg4 {[%emt 0:04:56]} 7. h3 {[%emt 0:00:07]} Bh5 {[%emt 0:00:32]} 8. Qd3 {[%emt 0:03:11]} Bg6 {[%emt 0:02:37]} 9. Qd2 {[%emt 0:00:23]} e6 {[%emt 0:02:28]} 10. Ne5 {[%emt 0:00:44]} Qb6 {[%emt 0:06:07]} 11. O-O {[%emt 0:01:07]} Bb4 {[%emt 0:01:20]} 12. Bxc6+ {[%emt 0:01:25]} bxc6 {[%emt 0:00:09]} 13. a3 {[%emt 0:00:13]} Bd6 {[%emt 0:02:54]} 14. Re1 {[%emt 0:01:17]} O-O {[%emt 0:01:14]} 15. Na4 {[%emt 0:01:00]} Qc7 {[%emt 0:01:23]} 16. Nxg6 {[%emt 0:01:54]} hxg6 {[%emt 0:03:12]} 17. Qd3 {[%emt 0:01:14]} Rab8 {[%emt 0:04:04]} 18. Rb1 {[%emt 0:00:16]} Rfc8 {[%emt 0:08:16]} 19. Bg5 {[%emt 0:00:42]} Ne4 {[%emt 0:04:44]} 20. Be3 {[%emt 0:02:04]} Qa5 {[%emt 0:06:44]} 21. Nc5 {[%emt 0:03:27]} Bxc5 {[%emt 0:01:39]} 22. dxc5 {[%emt 0:00:09]} Nxc5 {[%emt 0:01:09]} 23. Bxc5 {[%emt 0:00:10]} Qxc5 {[%emt 0:00:14]} 24. b4 {[%emt 0:00:39]} Qb6 {[%emt 0:01:07]} 25. c4 {[%emt 0:01:47]} Qa6 {[%emt 0:01:28]} 26. b5 {[%emt 0:01:00]} dxc4 {[%emt 0:00:27]} 27. Qxc4 {[%emt 0:00:22]} cxb5 {[%emt 0:00:20]} 28. Qe2 {[%emt 0:01:07]} Qa4 {[%emt 0:01:51]} 29. Qf3 {[%emt 0:01:07]} a6 {[%emt 0:01:41]} 30. Rb4 {[%emt 0:02:50]} Qa5 {[%emt 0:02:30]} 31. Rd1 {[%emt 0:02:21]} Qc7 {[%emt 0:02:05]} 32. Rb3 {[%emt 0:00:51]} Qc6 {[%emt 0:01:50]} 33. Qg3 {[%emt 0:00:29]} Rb7 {[%emt 0:01:40]} 34. Rd6 {[%emt 0:02:38]} Qc1+ {[%emt 0:00:41]} 35. Kh2 {[%emt 0:00:09]} a5 {[%emt 0:00:45]} 36. Rbd3 {[%emt 0:00:23]} Rbb8 {[%emt 0:01:22]} 37. Qh4 {[%emt 0:00:38]} Qc7 {[%emt 0:01:09]} 38. g3 {[%emt 0:00:26]} b4 {[%emt 0:01:24]} 39. Rd7 {[%emt 0:00:50]} Qb6 {[%emt 0:00:27]} 40. Kg2 {[%emt 0:00:35]} Rf8 {[%emt 0:01:55]} 41. axb4 {[%emt 0:31:07]} axb4 {[%emt 0:30:19]} 42. R7d6 {[%emt 0:01:46]} Qb7+ {[%emt 0:00:52]} 43. Kh2 {[%emt 0:00:16]} b3 {[%emt 0:00:20]} 44. Qc4 {[%emt 0:01:12]} b2 {[%emt 0:00:47]} 45. Rd1 {[%emt 0:00:57]} b1=Q {[%emt 0:00:50]} 46. Rxb1 {[%emt 0:00:08]} Qxb1 {[%emt 0:00:10]} 47. Rd7 {[%emt 0:00:56]} Qb5 {[%emt 0:00:57]} 48. Qd4 {[%emt 0:00:11]} Qf1 {[%emt 0:01:21]} 49. Qd2 {[%emt 0:00:31]} Rb1 {[%emt 0:00:23] normal} 0-1

[Event "DVM U12w 2023"]
[Site "Magdeburg"]
[Date "2023.12.27"]
[Round "1"]
[White "Lao, Theodora Siyuan"]
[Black "Sauermann, Paula"]
[Result "1-0"]
[WhiteElo "1044"]
[BlackElo "754"]
[PlyCount "109"]
[EventDate "2022.12.27"]
[EventType "team-tourn"]
[EventRounds "7"]
[EventCountry "GER"]
[TimeControl "40/5400+30:1800+30"]
[WhiteClock "1:34:03"]
[BlackClock "1:18:06"]

1. e4 {[%emt 0:00:01]} e5 {[%emt 0:00:02]} 2. Nc3 {[%emt 0:00:10]} Nc6 {[%emt 0:00:10]} 3. g3 {[%emt 0:00:11]} Bc5 {[%emt 0:00:13]} 4. Bg2 {[%emt 0:00:14]} Nf6 {[%emt 0:00:17]} 5. Nge2 {[%emt 0:00:20]} d6 {[%emt 0:00:34]} 6. O-O {[%emt 0:00:16]} Be6 {[%emt 0:00:53]} 7. d3 {[%emt 0:00:24]} O-O {[%emt 0:00:34]} 8. Be3 {[%emt 0:00:19]} Ng4 {[%emt 0:01:59]} 9. Bxc5 {[%emt 0:00:39]} dxc5 {[%emt 0:00:15]} 10. Re1 {[%emt 0:00:28]} Re8 {[%emt 0:01:50]} 11. Nd5 {[%emt 0:01:19]} Bxd5 {[%emt 0:02:05]} 12. exd5 {[%emt 0:00:16]} Ne7 {[%emt 0:02:15]} 13. Nc3 {[%emt 0:00:28]} Nf6 {[%emt 0:02:07]} 14. Rxe5 {[%emt 0:00:35]} Qd6 {[%emt 0:02:26]} 15. Qe2 {[%emt 0:01:41]} Nexd5 {[%emt 0:01:09]} 16. Rxe8+ {[%emt 0:00:31]} Rxe8 {[%emt 0:00:17]} 17. Qd2 {[%emt 0:00:50]} Nxc3 {[%emt 0:01:21]} 18. Qxc3 {[%emt 0:00:29]} b6 {[%emt 0:01:56]} 19. Re1 {[%emt 0:00:38]} Rxe1+ {[%emt 0:00:48]} 20. Qxe1 {[%emt 0:00:18]} h6 {[%emt 0:01:10]} 21. a3 {[%emt 0:00:33]} a5 {[%emt 0:01:13]} 22. Qd2 {[%emt 0:01:22]} g5 {[%emt 0:02:10]} 23. c3 {[%emt 0:00:35]} b5 {[%emt 0:01:09]} 24. b4 {[%emt 0:00:19]} cxb4 {[%emt 0:00:25]} 25. cxb4 {[%emt 0:00:24]} axb4 {[%emt 0:00:09]} 26. axb4 {[%emt 0:00:20]} c5 {[%emt 0:00:26]} 27. bxc5 {[%emt 0:00:16]} Qxc5 {[%emt 0:00:15]} 28. Qb2 {[%emt 0:00:29]} b4 {[%emt 0:00:16]} 29. Qxf6 {[%emt 0:00:23]} Qb5 {[%emt 0:00:43]} 30. Be4 {[%emt 0:00:49]} b3 {[%emt 0:00:43]} 31. d4 {[%emt 0:00:21]} b2 {[%emt 0:00:09]} 32. d5 {[%emt 0:00:23]} b1=Q+ {[%emt 0:00:08]} 33. Bxb1 {[%emt 0:00:16]} Qxb1+ {[%emt 0:00:20]} 34. Kg2 {[%emt 0:00:14]} Qe4+ {[%emt 0:00:14]} 35. Qf3 {[%emt 0:00:26]} Qxf3+ {[%emt 0:00:21]} 36. Kxf3 {[%emt 0:00:14]} Kf8 {[%emt 0:00:12]} 37. Ke4 {[%emt 0:00:12]} Ke7 {[%emt 0:00:22]} 38. Ke5 {[%emt 0:00:23]} f6+ {[%emt 0:00:14]} 39. Kf5 {[%emt 0:00:29]} h5 {[%emt 0:03:37]} 40. h3 {[%emt 0:00:48]} h4 {[%emt 0:00:38]} 41. gxh4 {[%emt 0:30:18]} gxh4 {[%emt 0:30:14]} 42. Kg4 {[%emt 0:00:29]} Kd6 {[%emt 0:00:23]} 43. Kxh4 {[%emt 0:00:20]} Kxd5 {[%emt 0:00:09]} 44. Kg4 {[%emt 0:00:15]} Ke5 {[%emt 0:00:31]} 45. h4 {[%emt 0:00:07]} f5+ {[%emt 0:00:07]} 46. Kg5 {[%emt 0:00:26]} f4 {[%emt 0:00:14]} 47. h5 {[%emt 0:00:10]} Ke4 {[%emt 0:00:10]} 48. h6 {[%emt 0:00:08]} f3 {[%emt 0:00:14]} 49. h7 {[%emt 0:00:11]} Kd3 {[%emt 0:00:06]} 50. h8=Q {[%emt 0:00:16]} Ke2 {[%emt 0:00:10]} 51. Qb2+ {[%emt 0:00:23]} Kf1 {[%emt 0:00:23]} 52. Kf4 {[%emt 0:00:22]} Kg1 {[%emt 0:00:10]} 53. Kxf3 {[%emt 0:00:18]} Kh2 {[%emt 0:00:16]} 54. Qe5+ {[%emt 0:00:37]} Kh3 {[%emt 0:00:12]} 55. Qg3# {[%emt 0:00:14] normal} 1-0

[Event "DVM U12w 2023"]
[Site "Magdeburg"]
[Date "2023.12.27"]
[Round "1"]
[White "Weißleder, Emia"]
[Black "Noennig, Lotte"]
[Result "0-1"]
[WhiteElo "1041"]
[BlackElo "1345"]
[PlyCount "66"]
[EventDate "2022.12.27"]
[EventType "team-tourn"]
[EventRounds "7"]
[EventCountry "GER"]
[TimeControl "40/5400+30:1800+30"]
[WhiteClock "0:54:06"]
[BlackClock "1:20:49"]

1. d4 {[%emt 0:00:02]} d5 {[%emt 0:00:08]} 2. Nc3 {[%emt 0:00:09]} Bf5 {[%emt 0:01:26]} 3. Bf4 {[%emt 0:00:21]} e6 {[%emt 0:01:07]} 4. Qd2 {[%emt 0:02:27]} Nc6 {[%emt 0:01:50]} 5. e3 {[%emt 0:03:44]} Qd7 {[%emt 0:02:35]} 6. Nf3 {[%emt 0:02:52]} Bb4 {[%emt 0:03:22]} 7. Bb5 {[%emt 0:01:39]} Nge7 {[%emt 0:01:41]} 8. Ne5 {[%emt 0:01:23]} Qd8 {[%emt 0:00:34]} 9. O-O-O {[%emt 0:03:30]} f6 {[%emt 0:00:59]} 10. Nxc6 {[%emt 0:01:23]} Nxc6 {[%emt 0:00:13]} 11. Bd3 {[%emt 0:10:39]} Bxd3 {[%emt 0:00:33]} 12. Qxd3 {[%emt 0:00:27]} Qd7 {[%emt 0:00:18]} 13. Nb5 {[%emt 0:01:54]} Ba5 {[%emt 0:01:16]} 14. Qa3 {[%emt 0:05:01]} a6 {[%emt 0:01:25]} 15. Nd6+ {[%emt 0:01:21]} cxd6 {[%emt 0:00:44]} 16. Bxd6 {[%emt 0:00:23]} O-O-O {[%emt 0:00:58]} 17. e4 {[%emt 0:03:41]} Qxd6 {[%emt 0:01:34]} 18. Qa4 {[%emt 0:02:01]} Qb4 {[%emt 0:00:42]} 19. Qb3 {[%emt 0:01:18]} Qxb3 {[%emt 0:00:10]} 20. cxb3 {[%emt 0:00:03]} dxe4 {[%emt 0:00:20]} 21. Kb1 {[%emt 0:01:05]} Rxd4 {[%emt 0:00:21]} 22. Rxd4 {[%emt 0:01:33]} Nxd4 {[%emt 0:00:13]} 23. Rc1+ {[%emt 0:00:03]} Kb8 {[%emt 0:00:14]} 24. b4 {[%emt 0:00:24]} Bb6 {[%emt 0:00:27]} 25. a4 {[%emt 0:01:07]} Rc8 {[%emt 0:00:24]} 26. a5 {[%emt 0:02:00]} Rxc1+ {[%emt 0:00:15]} 27. Kxc1 {[%emt 0:00:10]} Ba7 {[%emt 0:00:16]} 28. Kd2 {[%emt 0:00:18]} Nc6 {[%emt 0:00:45]} 29. Kc3 {[%emt 0:00:18]} Bxf2 {[%emt 0:00:08]} 30. Kc4 {[%emt 0:00:24]} Be1 {[%emt 0:00:38]} 31. b5 {[%emt 0:00:09]} axb5+ {[%emt 0:00:05]} 32. Kxb5 {[%emt 0:00:11]} Bxa5 {[%emt 0:00:16]} 33. Kc5 {[%emt 0:00:54]} e3 {[%emt 0:00:14] normal} 0-1

[Event "DVM U12w 2023"]
[Site "Magdeburg"]
[Date "2023.12.27"]
[Round "1"]
[White "Funke, Luise"]
[Black "Lehmann, Clara Theres"]
[Result "1-0"]
[WhiteElo "1018"]
[BlackElo "781"]
[PlyCount "105"]
[EventDate "2022.12.27"]
[EventType "team-tourn"]
[EventRounds "7"]
[EventCountry "GER"]
[TimeControl "40/5400+30:1800+30"]
[WhiteClock "0:45:24"]
[BlackClock "0:12:21"]

1. e4 {[%emt 0:00:02]} e5 {[%emt 0:00:06]} 2. Nf3 {[%emt 0:00:05]} Nc6 {[%emt 0:00:07]} 3. Bc4 {[%emt 0:00:07]} Bc5 {[%emt 0:00:11]} 4. c3 {[%emt 0:00:06]} Qf6 {[%emt 0:10:07]} 5. d4 {[%emt 0:02:21]} exd4 {[%emt 0:05:34]} 6. Bg5 {[%emt 0:04:49]} Qd6 {[%emt 0:06:17]} 7. b4 {[%emt 0:02:08]} Bb6 {[%emt 0:06:11]} 8. b5 {[%emt 0:14:47]} Na5 {[%emt 0:07:24]} 9. Bd5 {[%emt 0:03:44]} dxc3 {[%emt 0:08:41]} 10. Nxc3 {[%emt 0:01:01]} Qc5 {[%emt 0:03:29]} 11. Qd2 {[%emt 0:02:18]} c6 {[%emt 0:08:58]} 12. Na4 {[%emt 0:05:57]} Qxb5 {[%emt 0:02:22]} 13. Nc3 {[%emt 0:02:43]} Qc5 {[%emt 0:01:44]} 14. Be3 {[%emt 0:01:14]} Qb4 {[%emt 0:04:11]} 15. a3 {[%emt 0:00:42]} Qd6 {[%emt 0:04:41]} 16. Bxf7+ {[%emt 0:00:14]} Ke7 {[%emt 0:02:09]} 17. Bg5+ {[%emt 0:00:58]} Nf6 {[%emt 0:02:20]} 18. Qxd6+ {[%emt 0:00:20]} Kxd6 {[%emt 0:00:17]} 19. Rd1+ {[%emt 0:01:22]} Kc7 {[%emt 0:00:22]} 20. Bf4+ {[%emt 0:04:28]} Kd8 {[%emt 0:05:50]} 21. Bd6 {[%emt 0:02:07]} Nc4 {[%emt 0:02:22]} 22. Bxc4 {[%emt 0:01:30]} Re8 {[%emt 0:02:18]} 23. e5 {[%emt 0:00:32]} Ng4 {[%emt 0:00:35]} 24. O-O {[%emt 0:01:18]} Bxf2+ {[%emt 0:00:51]} 25. Rxf2 {[%emt 0:00:11]} Nxf2 {[%emt 0:00:08]} 26. Kxf2 {[%emt 0:00:04]} Re7 {[%emt 0:01:30]} 27. Bxe7+ {[%emt 0:00:25]} Kxe7 {[%emt 0:00:07]} 28. Rd6 {[%emt 0:01:02]} b5 {[%emt 0:00:43]} 29. Bb3 {[%emt 0:00:25]} a5 {[%emt 0:01:01]} 30. Nd4 {[%emt 0:01:14]} b4 {[%emt 0:00:25]} 31. Nf5+ {[%emt 0:00:57]} Ke8 {[%emt 0:00:30]} 32. axb4 {[%emt 0:00:34]} axb4 {[%emt 0:00:17]} 33. Na4 {[%emt 0:00:31]} Ba6 {[%emt 0:00:30]} 34. Nxg7+ {[%emt 0:01:17]} Ke7 {[%emt 0:00:15]} 35. Nb6 {[%emt 0:01:41]} Rf8+ {[%emt 0:00:19]} 36. Kg3 {[%emt 0:00:51]} Rb8 {[%emt 0:02:10]} 37. Rxd7+ {[%emt 0:00:18]} Kf8 {[%emt 0:01:37]} 38. Rf7+ {[%emt 0:01:27]} Kg8 {[%emt 0:00:26]} 39. Rb7+ {[%emt 0:00:22]} Kf8 {[%emt 0:00:25]} 40. Ne6+ {[%emt 0:00:59]} Kg8 {[%emt 0:01:18]} 41. Rxb8+ {[%emt 0:30:12]} Kf7 {[%emt 0:30:30]} 42. Nc7+ {[%emt 0:00:08]} Kg6 {[%emt 0:00:24]} 43. Nxa6 {[%emt 0:00:16]} h5 {[%emt 0:00:50]} 44. e6 {[%emt 0:00:38]} Kg5 {[%emt 0:00:00]} 45. e7 {[%emt 0:00:10]} h4+ {[%emt 0:00:00]} 46. Kf2 {[%emt 0:00:21]} Kg4 {[%emt 0:00:00]} 47. e8=Q {[%emt 0:00:13]} h3 {[%emt 0:00:17]} 48. Qe6+ {[%emt 0:00:43]} Kg5 {[%emt 0:02:09]} 49. Rg8+ {[%emt 0:00:24]} Kf4 {[%emt 0:00:18]} 50. Rf8+ {[%emt 0:00:13]} Kg5 {[%emt 0:00:17]} 51. Qxh3 {[%emt 0:00:50]} c5 {[%emt 0:00:08]} 52. Qg3+ {[%emt 0:00:11]} Kh5 {[%emt 0:00:28]} 53. Rh8# {[%emt 0:00:06] normal} 1-0

[Event "DVM U12w 2023"]
[Site "Magdeburg"]
[Date "2023.12.27"]
[Round "1"]
[White "Martin, Helene"]
[Black "He, Siqi"]
[Result "1/2-1/2"]
[WhiteElo "989"]
[BlackElo "812"]
[PlyCount "110"]
[EventDate "2022.12.27"]
[EventType "team-tourn"]
[EventRounds "7"]
[EventCountry "GER"]
[TimeControl "40/5400+30:1800+30"]
[WhiteClock "0:29:22"]
[BlackClock "1:27:15"]

1. e4 {[%emt 0:00:03]} e5 {[%emt 0:00:01]} 2. Nf3 {[%emt 0:00:10]} Nc6 {[%emt 0:00:16]} 3. Bc4 {[%emt 0:00:03]} d6 {[%emt 0:00:15]} 4. c3 {[%emt 0:00:07]} Be6 {[%emt 0:00:42]} 5. Bb3 {[%emt 0:03:30]} d5 {[%emt 0:00:43]} 6. exd5 {[%emt 0:08:48]} Bxd5 {[%emt 0:00:19]} 7. O-O {[%emt 0:02:10]} Nf6 {[%emt 0:00:15]} 8. Re1 {[%emt 0:01:34]} Qd7 {[%emt 0:01:46]} 9. Nxe5 {[%emt 0:08:50]} Nxe5 {[%emt 0:00:48]} 10. Rxe5+ {[%emt 0:00:17]} Be7 {[%emt 0:00:11]} 11. d4 {[%emt 0:01:51]} Bc6 {[%emt 0:01:11]} 12. f3 {[%emt 0:11:48]} O-O {[%emt 0:01:28]} 13. Qe1 {[%emt 0:03:09]} Rae8 {[%emt 0:00:58]} 14. Bg5 {[%emt 0:02:57]} h6 {[%emt 0:00:22]} 15. Bxf6 {[%emt 0:07:33]} Bxf6 {[%emt 0:00:31]} 16. Re2 {[%emt 0:01:39]} Rxe2 {[%emt 0:00:20]} 17. Qxe2 {[%emt 0:00:17]} Re8 {[%emt 0:00:07]} 18. Qd1 {[%emt 0:01:26]} Re7 {[%emt 0:00:16]} 19. Na3 {[%emt 0:00:31]} Qe8 {[%emt 0:01:35]} 20. Nc2 {[%emt 0:01:17]} Ba4 {[%emt 0:01:08]} 21. Nb4 {[%emt 0:00:55]} Bxb3 {[%emt 0:00:56]} 22. axb3 {[%emt 0:00:09]} a5 {[%emt 0:00:39]} 23. Nd5 {[%emt 0:00:37]} Rd7 {[%emt 0:01:06]} 24. Nxf6+ {[%emt 0:01:48]} gxf6 {[%emt 0:00:27]} 25. Qe1 {[%emt 0:00:30]} Re7 {[%emt 0:00:26]} 26. Qc1 {[%emt 0:03:52]} b5 {[%emt 0:00:47]} 27. h3 {[%emt 0:00:44]} a4 {[%emt 0:00:15]} 28. bxa4 {[%emt 0:01:18]} bxa4 {[%emt 0:00:08]} 29. Qd2 {[%emt 0:02:31]} c6 {[%emt 0:00:56]} 30. Kf1 {[%emt 0:00:27]} f5 {[%emt 0:03:02]} 31. Re1 {[%emt 0:00:23]} h5 {[%emt 0:00:31]} 32. Qg5+ {[%emt 0:00:25]} Kf8 {[%emt 0:00:15]} 33. Qh6+ {[%emt 0:00:29]} Kg8 {[%emt 0:00:21]} 34. Qg5+ {[%emt 0:00:22]} Kf8 {[%emt 0:00:13]} 35. Qxe7+ {[%emt 0:01:03]} Qxe7 {[%emt 0:00:14]} 36. Rxe7 {[%emt 0:00:04]} Kxe7 {[%emt 0:00:15]} 37. Kf2 {[%emt 0:00:22]} Kd6 {[%emt 0:00:09]} 38. Ke2 {[%emt 0:00:19]} c5 {[%emt 0:00:08]} 39. dxc5+ {[%emt 0:01:04]} Kxc5 {[%emt 0:00:20]} 40. Kd2 {[%emt 0:00:22]} Kb5 {[%emt 0:00:17]} 41. Kc2 {[%emt 0:00:24]} Kc4 {[%emt 0:00:19]} 42. b3+ {[%emt 0:33:15]} axb3+ {[%emt 0:30:57]} 43. Kb2 {[%emt 0:00:04]} f6 {[%emt 0:00:13]} 44. g3 {[%emt 0:01:25]} f4 {[%emt 0:01:13]} 45. g4 {[%emt 0:00:18]} hxg4 {[%emt 0:00:32]} 46. hxg4 {[%emt 0:00:18]} Kd3 {[%emt 0:00:34]} 47. Kxb3 {[%emt 0:00:38]} Ke3 {[%emt 0:00:18]} 48. Kc2 {[%emt 0:00:07]} Kxf3 {[%emt 0:00:14]} 49. Kd2 {[%emt 0:00:13]} Kxg4 {[%emt 0:00:11]} 50. Ke1 {[%emt 0:00:08]} Kf5 {[%emt 0:00:16]} 51. Kd2 {[%emt 0:00:58]} Ke5 {[%emt 0:00:10]} 52. Ke2 {[%emt 0:03:28]} f5 {[%emt 0:00:29]} 53. Kf3 {[%emt 0:00:20]} Kd5 {[%emt 0:00:16]} 54. Kxf4 {[%emt 0:01:06]} Kc4 {[%emt 0:00:12]} 55. Kxf5 {[%emt 0:00:12]} Kxc3 {[%emt 0:00:14] normal} 1/2-1/2

[Event "DVM U12w 2023"]
[Site "Magdeburg"]
[Date "2023.12.27"]
[Round "1"]
[White "Khachaturyan, Viktoria"]
[Black "Hladeniuk, Yelyzaveta"]
[Result "0-1"]
[WhiteElo "987"]
[BlackElo "1362"]
[PlyCount "70"]
[EventDate "2022.12.27"]
[EventType "team-tourn"]
[EventRounds "7"]
[EventCountry "GER"]
[TimeControl "40/5400+30:1800+30"]
[WhiteClock "1:12:06"]
[BlackClock "1:20:49"]

1. e4 {[%emt 0:00:01]} c6 {[%emt 0:00:09]} 2. d4 {[%emt 0:00:06]} d5 {[%emt 0:00:06]} 3. exd5 {[%emt 0:00:06]} cxd5 {[%emt 0:00:23]} 4. Nc3 {[%emt 0:00:24]} Nf6 {[%emt 0:00:12]} 5. Bd3 {[%emt 0:00:11]} Nc6 {[%emt 0:00:18]} 6. Nf3 {[%emt 0:00:11]} Bg4 {[%emt 0:00:11]} 7. O-O {[%emt 0:00:18]} Nxd4 {[%emt 0:00:59]} 8. Bb5+ {[%emt 0:01:06]} Nc6 {[%emt 0:00:18]} 9. h3 {[%emt 0:02:51]} Bxf3 {[%emt 0:01:30]} 10. Qxf3 {[%emt 0:00:22]} e6 {[%emt 0:00:21]} 11. Bg5 {[%emt 0:02:43]} Be7 {[%emt 0:05:43]} 12. Rfe1 {[%emt 0:01:44]} O-O {[%emt 0:00:30]} 13. Bxf6 {[%emt 0:00:59]} Bxf6 {[%emt 0:00:12]} 14. Qh5 {[%emt 0:01:22]} Rc8 {[%emt 0:02:26]} 15. Bd3 {[%emt 0:00:56]} g6 {[%emt 0:01:21]} 16. Qg4 {[%emt 0:01:26]} Ne5 {[%emt 0:01:16]} 17. Qb4 {[%emt 0:03:03]} Nxd3 {[%emt 0:00:55]} 18. cxd3 {[%emt 0:00:12]} b6 {[%emt 0:00:33]} 19. Rac1 {[%emt 0:01:32]} a5 {[%emt 0:01:46]} 20. Qf4 {[%emt 0:02:28]} Bg5 {[%emt 0:00:25]} 21. Qe5 {[%emt 0:01:17]} Bxc1 {[%emt 0:00:25]} 22. Rxc1 {[%emt 0:00:22]} b5 {[%emt 0:01:04]} 23. Qf4 {[%emt 0:00:40]} b4 {[%emt 0:00:26]} 24. Ne2 {[%emt 0:00:11]} Rxc1+ {[%emt 0:00:20]} 25. Nxc1 {[%emt 0:00:25]} Qb8 {[%emt 0:00:46]} 26. Qh6 {[%emt 0:02:19]} Rc8 {[%emt 0:00:11]} 27. a4 {[%emt 0:00:27]} bxa3 {[%emt 0:00:07]} 28. bxa3 {[%emt 0:00:34]} Rc3 {[%emt 0:00:52]} 29. Qg5 {[%emt 0:02:24]} Qb1 {[%emt 0:01:47]} 30. Qd8+ {[%emt 0:02:14]} Kg7 {[%emt 0:00:09]} 31. Qxa5 {[%emt 0:01:16]} Qxc1+ {[%emt 0:00:32]} 32. Kh2 {[%emt 0:00:28]} Qf4+ {[%emt 0:00:09]} 33. g3 {[%emt 0:00:50]} Qxf2+ {[%emt 0:00:11]} 34. Kh1 {[%emt 0:00:14]} Rc1+ {[%emt 0:00:08]} 35. Qe1 {[%emt 0:00:12]} Rxe1# {[%emt 0:00:15] normal} 0-1

[Event "DVM U12w 2023"]
[Site "Magdeburg"]
[Date "2023.12.27"]
[Round "1"]
[White "Poberezhna, Anna"]
[Black "Grey, Paula"]
[Result "1/2-1/2"]
[WhiteElo "951"]
[BlackElo "1008"]
[PlyCount "65"]
[EventDate "2022.12.27"]
[EventType "team-tourn"]
[EventRounds "7"]
[EventCountry "GER"]
[TimeControl "40/5400+30:1800+30"]
[WhiteClock "1:24:32"]
[BlackClock "0:32:22"]

1. e4 {[%emt 0:00:01]} e5 {[%emt 0:00:06]} 2. Nf3 {[%emt 0:00:05]} Nc6 {[%emt 0:00:11]} 3. Bc4 {[%emt 0:00:19]} Bc5 {[%emt 0:00:19]} 4. O-O {[%emt 0:00:19]} d6 {[%emt 0:00:30]} 5. h3 {[%emt 0:00:07]} Nf6 {[%emt 0:01:16]} 6. d3 {[%emt 0:00:14]} h6 {[%emt 0:00:42]} 7. Nc3 {[%emt 0:00:09]} O-O {[%emt 0:01:27]} 8. Be3 {[%emt 0:00:31]} Bb6 {[%emt 0:01:15]} 9. d4 {[%emt 0:01:21]} exd4 {[%emt 0:03:14]} 10. Nxd4 {[%emt 0:00:11]} Nxd4 {[%emt 0:01:25]} 11. Bxd4 {[%emt 0:00:07]} c5 {[%emt 0:03:34]} 12. Be3 {[%emt 0:00:12]} Re8 {[%emt 0:02:56]} 13. Qf3 {[%emt 0:00:30]} Be6 {[%emt 0:06:27]} 14. Bb3 {[%emt 0:00:36]} Bxb3 {[%emt 0:09:06]} 15. axb3 {[%emt 0:00:11]} Nd7 {[%emt 0:07:53]} 16. Nd5 {[%emt 0:00:28]} Qh4 {[%emt 0:03:34]} 17. Nxb6 {[%emt 0:00:58]} Nxb6 {[%emt 0:01:56]} 18. Rad1 {[%emt 0:00:19]} Rad8 {[%emt 0:01:32]} 19. Rd3 {[%emt 0:01:20]} Qxe4 {[%emt 0:01:37]} 20. Qg3 {[%emt 0:00:17]} Qg6 {[%emt 0:00:59]} 21. Qxg6 {[%emt 0:00:45]} fxg6 {[%emt 0:00:23]} 22. Rfd1 {[%emt 0:01:04]} Re6 {[%emt 0:02:54]} 23. Bf4 {[%emt 0:02:02]} Nc8 {[%emt 0:01:38]} 24. c3 {[%emt 0:00:42]} Kf7 {[%emt 0:02:53]} 25. Kh2 {[%emt 0:00:41]} Ke7 {[%emt 0:01:53]} 26. b4 {[%emt 0:02:56]} b6 {[%emt 0:00:00]} 27. g4 {[%emt 0:00:54]} Re2 {[%emt 0:02:18]} 28. Kg3 {[%emt 0:00:52]} Rxb2 {[%emt 0:01:06]} 29. Re1+ {[%emt 0:00:08]} Kf7 {[%emt 0:04:04]} 30. Rf3 {[%emt 0:00:08]} Kg8 {[%emt 0:03:17]} 31. g5 {[%emt 0:00:17]} Kh7 {[%emt 0:01:37]} 32. h4 {[%emt 0:01:56]} h5 {[%emt 0:02:06]} 33. Rfe3 {[%emt 0:01:48] normal} 1/2-1/2

[Event "DVM U12w 2023"]
[Site "Magdeburg"]
[Date "2023.12.27"]
[Round "1"]
[White "Du, Melina"]
[Black "Dong, Beicen"]
[Result "0-1"]
[WhiteElo "934"]
[BlackElo "843"]
[PlyCount "46"]
[EventDate "2022.12.27"]
[EventType "team-tourn"]
[EventRounds "7"]
[EventCountry "GER"]
[TimeControl "40/5400+30:1800+30"]
[WhiteClock "1:19:33"]
[BlackClock "1:31:44"]

1. e4 {[%emt 0:00:01]} d5 {[%emt 0:00:09]} 2. Nc3 {[%emt 0:00:07]} e6 {[%emt 0:00:17]} 3. Nf3 {[%emt 0:00:06]} Nf6 {[%emt 0:00:18]} 4. e5 {[%emt 0:00:12]} Ne4 {[%emt 0:00:21]} 5. Nxe4 {[%emt 0:02:08]} dxe4 {[%emt 0:00:26]} 6. Ng1 {[%emt 0:00:36]} Nc6 {[%emt 0:00:54]} 7. Bb5 {[%emt 0:00:02]} Bd7 {[%emt 0:00:35]} 8. f3 {[%emt 0:00:28]} Nxe5 {[%emt 0:00:18]} 9. Bxd7+ {[%emt 0:00:11]} Qxd7 {[%emt 0:00:08]} 10. fxe4 {[%emt 0:03:59]} Qd8 {[%emt 0:00:20]} 11. d4 {[%emt 0:00:56]} Nc6 {[%emt 0:00:32]} 12. d5 {[%emt 0:00:22]} Qh4+ {[%emt 0:00:43]} 13. g3 {[%emt 0:00:15]} Qxe4+ {[%emt 0:00:13]} 14. Qe2 {[%emt 0:01:28]} Qxh1 {[%emt 0:00:33]} 15. Qe3 {[%emt 0:03:20]} Nb4 {[%emt 0:00:36]} 16. Qc3 {[%emt 0:00:38]} Qxg1+ {[%emt 0:00:41]} 17. Kd2 {[%emt 0:00:31]} Nxd5 {[%emt 0:00:23]} 18. b3 {[%emt 0:00:48]} Bb4 {[%emt 0:00:09]} 19. Qxb4 {[%emt 0:01:28]} Nxb4 {[%emt 0:00:11]} 20. Bb2 {[%emt 0:00:41]} Qf2+ {[%emt 0:00:26]} 21. Kd1 {[%emt 0:00:23]} O-O-O+ {[%emt 0:00:30]} 22. Bd4 {[%emt 0:03:27]} Rxd4+ {[%emt 0:00:27]} 23. Kc1 {[%emt 0:00:20]} Qxc2# {[%emt 0:01:06] normal} 0-1

[Event "DVM U12w 2023"]
[Site "Magdeburg"]
[Date "2023.12.27"]
[Round "1"]
[White "Rabus, Luise"]
[Black "Werner, Amelie"]
[Result "1-0"]
[WhiteElo "913"]
[BlackElo "1311"]
[PlyCount "45"]
[EventDate "2022.12.27"]
[EventType "team-tourn"]
[EventRounds "7"]
[EventCountry "GER"]
[TimeControl "40/5400+30:1800+30"]
[WhiteClock "1:31:54"]
[BlackClock "1:35:34"]

1. e4 {[%emt 0:00:01]} e6 {[%emt 0:00:07]} 2. d4 {[%emt 0:00:08]} d5 {[%emt 0:00:05]} 3. e5 {[%emt 0:00:05]} c5 {[%emt 0:00:06]} 4. c3 {[%emt 0:00:16]} Nc6 {[%emt 0:00:09]} 5. Nf3 {[%emt 0:00:18]} Qb6 {[%emt 0:00:11]} 6. Bd3 {[%emt 0:00:13]} cxd4 {[%emt 0:00:12]} 7. cxd4 {[%emt 0:00:26]} Nxd4 {[%emt 0:00:13]} 8. Nxd4 {[%emt 0:00:14]} Qxd4 {[%emt 0:00:08]} 9. Bb5+ {[%emt 0:00:09]} Bd7 {[%emt 0:00:23]} 10. Bxd7+ {[%emt 0:00:09]} Kxd7 {[%emt 0:00:05]} 11. Qxd4 {[%emt 0:00:10]} Rc8 {[%emt 0:00:10]} 12. Nc3 {[%emt 0:00:49]} Rc4 {[%emt 0:00:05]} 13. Qxa7 {[%emt 0:00:40]} Bc5 {[%emt 0:00:09]} 14. Qxb7+ {[%emt 0:00:19]} Kd8 {[%emt 0:00:07]} 15. Be3 {[%emt 0:00:24]} Rb4 {[%emt 0:00:11]} 16. Qxf7 {[%emt 0:01:19]} d4 {[%emt 0:01:00]} 17. Bg5+ {[%emt 0:00:19]} Ne7 {[%emt 0:00:27]} 18. Ne4 {[%emt 0:01:17]} Bb6 {[%emt 0:01:13]} 19. Qxe7+ {[%emt 0:00:28]} Kc8 {[%emt 0:00:12]} 20. Qxb4 {[%emt 0:00:14]} Ba7 {[%emt 0:00:16]} 21. Rc1+ {[%emt 0:00:27]} Kd7 {[%emt 0:00:10]} 22. Qb7+ {[%emt 0:00:50]} Ke8 {[%emt 0:00:17]} 23. Rc8# {[%emt 0:00:51] normal} 1-0